Publisher Label,Publisher URI,"Supplier","Net Amount £","Organisational Unit","Merchant Category Code","Purpose","Payment Date"
"Wolverhampton City Council","http://opendatacommunities.org/id/metropolitan-district-council/wolverhampton","TVLICENSING.CO.UK",157.5,"Children & Family Contact Services","7392","Professional fees","29/05/2020"
"Wolverhampton City Council","http://opendatacommunities.org/id/metropolitan-district-council/wolverhampton","POST OFFICE COUNTER",100,"Headstart - Young People Engagement","9402","Provisions (Not for resale)","29/05/2020"
"Wolverhampton City Council","http://opendatacommunities.org/id/metropolitan-district-council/wolverhampton","B&M RETAIL",2,"Passenger Transport - General","5310","-","29/05/2020"
"Wolverhampton City Council","http://opendatacommunities.org/id/metropolitan-district-council/wolverhampton","HOME BARGAINS WOLVERHA",15.9,"Passenger Transport - General","5251","-","29/05/2020"
"Wolverhampton City Council","http://opendatacommunities.org/id/metropolitan-district-council/wolverhampton","ALDI 73 772",14.31,"Specialist Support Service - North","5411","Equipment - Purchase","29/05/2020"
"Wolverhampton City Council","http://opendatacommunities.org/id/metropolitan-district-council/wolverhampton","D E S LTD",1282.16,"Document Centre - General","8911","Materials","29/05/2020"
"Wolverhampton City Council","http://opendatacommunities.org/id/metropolitan-district-council/wolverhampton","EDMUNDSON ELECTRICAL L",7.78,"Street Lighting Maintenance","5065","-","29/05/2020"
"Wolverhampton City Council","http://opendatacommunities.org/id/metropolitan-district-council/wolverhampton","HUGHES TV AND AUDIO LT",250,"LAC Transitions Team","5732","Client Allowances","29/05/2020"
"Wolverhampton City Council","http://opendatacommunities.org/id/metropolitan-district-council/wolverhampton","ARGOS LTD",67.43,"Fostering Team & Allowances","5310","Computing - Consumables","29/05/2020"
"Wolverhampton City Council","http://opendatacommunities.org/id/metropolitan-district-council/wolverhampton","AMZNMktplace",54.6,"Cemeteries","5999","-","29/05/2020"
"Wolverhampton City Council","http://opendatacommunities.org/id/metropolitan-district-council/wolverhampton","ASDA GROCERIES ONLINE",-8.87,"Upper Pendeford Farm Childrens Home","5411","Provisions (Not for resale)","29/05/2020"
"Wolverhampton City Council","http://opendatacommunities.org/id/metropolitan-district-council/wolverhampton","ASDA GROCERIES ONLINE",222.98,"Upper Pendeford Farm Childrens Home","5411","Provisions (Not for resale)","29/05/2020"
"Wolverhampton City Council","http://opendatacommunities.org/id/metropolitan-district-council/wolverhampton","MEDISAVE",58.19,"COVID 19 - Public Health","5047","Equipment - Health and Safety","29/05/2020"
"Wolverhampton City Council","http://opendatacommunities.org/id/metropolitan-district-council/wolverhampton","CUMMINGS BROTHERS LOCK",14.17,"Cleaning of Buildings - General","7399","Equipment - R & M","29/05/2020"
"Wolverhampton City Council","http://opendatacommunities.org/id/metropolitan-district-council/wolverhampton","CARVER/WOLVERHAMPTON/L",52.08,"Cleaning of Buildings - General","5211","Equipment - R & M","29/05/2020"
"Wolverhampton City Council","http://opendatacommunities.org/id/metropolitan-district-council/wolverhampton","NoteMachine ATM",16.67,"LAC Transitions Team","6011","Client Allowances","29/05/2020"
"Wolverhampton City Council","http://opendatacommunities.org/id/metropolitan-district-council/wolverhampton","ALDI 48 772",3.96,"Duke Street Bungalows","5411","Provisions (Not for resale)","29/05/2020"
"Wolverhampton City Council","http://opendatacommunities.org/id/metropolitan-district-council/wolverhampton","ALDI 48 772",3.32,"Duke Street Bungalows","5411","R4010","29/05/2020"
"Wolverhampton City Council","http://opendatacommunities.org/id/metropolitan-district-council/wolverhampton","AMZNMktplace",19.01,"Duke Street Bungalows","5999","R4010","29/05/2020"
"Wolverhampton City Council","http://opendatacommunities.org/id/metropolitan-district-council/wolverhampton","AMZNMktplace",19.01,"Duke Street Bungalows","5999","R4010","29/05/2020"
"Wolverhampton City Council","http://opendatacommunities.org/id/metropolitan-district-council/wolverhampton","AMZNMktplace",19.01,"Duke Street Bungalows","5999","R4010","29/05/2020"
"Wolverhampton City Council","http://opendatacommunities.org/id/metropolitan-district-council/wolverhampton","AMZNMktplace",19.49,"Duke Street Bungalows","5999","R4010","29/05/2020"
"Wolverhampton City Council","http://opendatacommunities.org/id/metropolitan-district-council/wolverhampton","AMZNMktplace",31.65,"Duke Street Bungalows","5999","R4010","29/05/2020"
"Wolverhampton City Council","http://opendatacommunities.org/id/metropolitan-district-council/wolverhampton","AMZNMktplace",7.5,"Duke Street Bungalows","5999","R4010","29/05/2020"
"Wolverhampton City Council","http://opendatacommunities.org/id/metropolitan-district-council/wolverhampton","PAYPAL  RTPI",-102,"Workforce Development","8398","Training Expenses","29/05/2020"
"Wolverhampton City Council","http://opendatacommunities.org/id/metropolitan-district-council/wolverhampton","PAYPAL  RTPI",-51,"Workforce Development","8398","Training Expenses","29/05/2020"
"Wolverhampton City Council","http://opendatacommunities.org/id/metropolitan-district-council/wolverhampton","OAKLAND",710.5,"Destitute Plus","7011","Accommodation Costs","29/05/2020"
"Wolverhampton City Council","http://opendatacommunities.org/id/metropolitan-district-council/wolverhampton","OAKLAND",710.5,"Destitute Plus","7011","Accommodation Costs","29/05/2020"
"Wolverhampton City Council","http://opendatacommunities.org/id/metropolitan-district-council/wolverhampton","HALFORDS 0448",-49.99,"Ernest Bold Court","5940","Equipment - Purchase","29/05/2020"
"Wolverhampton City Council","http://opendatacommunities.org/id/metropolitan-district-council/wolverhampton","AMZNMktplace",41.62,"COVID 19 - Waste Service","5999","Equipment - Purchase","29/05/2020"
"Wolverhampton City Council","http://opendatacommunities.org/id/metropolitan-district-council/wolverhampton","AMZNMKTPLACE AMAZON.CO",9.16,"Community Enablement","5999","Equipment - Health and Safety","29/05/2020"
"Wolverhampton City Council","http://opendatacommunities.org/id/metropolitan-district-council/wolverhampton","AMZNMKTPLACE AMAZON.CO",33.32,"Community Enablement","5999","Equipment - Health and Safety","29/05/2020"
"Wolverhampton City Council","http://opendatacommunities.org/id/metropolitan-district-council/wolverhampton","AMZNMktplace",66.65,"Community Enablement","5999","Equipment - Health and Safety","29/05/2020"
"Wolverhampton City Council","http://opendatacommunities.org/id/metropolitan-district-council/wolverhampton","AMZNMktplace",37.82,"Landscape","5999","Equipment - Purchase","29/05/2020"
"Wolverhampton City Council","http://opendatacommunities.org/id/metropolitan-district-council/wolverhampton","POST OFFICE COUNTER",11,"Northicote Farm","9402","Comms - Postage","29/05/2020"
"Wolverhampton City Council","http://opendatacommunities.org/id/metropolitan-district-council/wolverhampton","NoteMachine ATM",50,"Ernest Bold Court","6011","Provisions (Resale)","28/05/2020"
"Wolverhampton City Council","http://opendatacommunities.org/id/metropolitan-district-council/wolverhampton","WWW.VOUCHEREXPRESS.CO.",245.75,"Youth Offending Team","5947","Provisions (Not for resale)","28/05/2020"
"Wolverhampton City Council","http://opendatacommunities.org/id/metropolitan-district-council/wolverhampton","POUNDLAND LTD 1463",10.1,"ICT Services","5310","Computing - Purchase of Hardware","28/05/2020"
"Wolverhampton City Council","http://opendatacommunities.org/id/metropolitan-district-council/wolverhampton","POST OFFICE COUNTER",83.6,"Ernest Bold Court","9402","Comms - Postage","28/05/2020"
"Wolverhampton City Council","http://opendatacommunities.org/id/metropolitan-district-council/wolverhampton","AMZNMktplace",11.53,"Vulnerable Young Persons Team","5999","Equipment - Health and Safety","28/05/2020"
"Wolverhampton City Council","http://opendatacommunities.org/id/metropolitan-district-council/wolverhampton","AMZNMktplace",12.69,"Vulnerable Young Persons Team","5999","Equipment - Health and Safety","28/05/2020"
"Wolverhampton City Council","http://opendatacommunities.org/id/metropolitan-district-council/wolverhampton","AMZ MeiMi",-54.98,"Duke Street Bungalows","5999","R4010","28/05/2020"
"Wolverhampton City Council","http://opendatacommunities.org/id/metropolitan-district-council/wolverhampton","HALFORDS ON LINE",41.66,"Ernest Bold Court","5940","Equipment - Purchase","28/05/2020"
"Wolverhampton City Council","http://opendatacommunities.org/id/metropolitan-district-council/wolverhampton","AMZNMKTPLACE AMAZON.CO",17.92,"Ernest Bold Court","5999","Equipment - Purchase","28/05/2020"
"Wolverhampton City Council","http://opendatacommunities.org/id/metropolitan-district-council/wolverhampton","AMZNMktplace",13.73,"Community Enablement","5999","Equipment - Health and Safety","28/05/2020"
"Wolverhampton City Council","http://opendatacommunities.org/id/metropolitan-district-council/wolverhampton","TESCO STORES 5397",5.12,"Headstart - Young People Engagement","5411","Comms - Postage","28/05/2020"
"Wolverhampton City Council","http://opendatacommunities.org/id/metropolitan-district-council/wolverhampton","PO COSELEY 1398",10,"LAC Transitions Team","6011","Independant Living Allowance","28/05/2020"
"Wolverhampton City Council","http://opendatacommunities.org/id/metropolitan-district-council/wolverhampton","EBUYER (UK) LTD",-88.97,"Macmillan Welfare Rights","5722","Comms - Postage","28/05/2020"
"Wolverhampton City Council","http://opendatacommunities.org/id/metropolitan-district-council/wolverhampton","Amazon.co.uk XQ4928ZN5",14.9,"Key to Inspiration","5969","-","28/05/2020"
"Wolverhampton City Council","http://opendatacommunities.org/id/metropolitan-district-council/wolverhampton","WM MORRISONS STORE",104.87,"Bradley Resource Centre","5411","Provisions (Not for resale)","28/05/2020"
"Wolverhampton City Council","http://opendatacommunities.org/id/metropolitan-district-council/wolverhampton","AMZNMKTPLACE AMAZON.CO",-65.47,"Specialist Support Service - North","5999","Equipment - Purchase","28/05/2020"
"Wolverhampton City Council","http://opendatacommunities.org/id/metropolitan-district-council/wolverhampton","SCREWFIX DIRECT",36.44,"Hickman Avenue Depot","5200","Equipment - Purchase","28/05/2020"
"Wolverhampton City Council","http://opendatacommunities.org/id/metropolitan-district-council/wolverhampton","Amazon.co.uk CO6JC5B85",43.72,"LAC Transitions Team","5969","Independant Living Allowance","28/05/2020"
"Wolverhampton City Council","http://opendatacommunities.org/id/metropolitan-district-council/wolverhampton","HUGHES TV AND AUDIO LT",309.51,"LAC Transitions Team","5732","Client Allowances","28/05/2020"
"Wolverhampton City Council","http://opendatacommunities.org/id/metropolitan-district-council/wolverhampton","UK DEED POLL SERVICE L",58,"Lac Transitions","7299","Services - Supplies & Services to users","27/05/2020"
"Wolverhampton City Council","http://opendatacommunities.org/id/metropolitan-district-council/wolverhampton","AMZNMktplace",18.44,"Key to Inspiration","5999","-","27/05/2020"
"Wolverhampton City Council","http://opendatacommunities.org/id/metropolitan-district-council/wolverhampton","REPLACEMENT KEYS LTD",5.9,"Key to Inspiration","5399","-","27/05/2020"
"Wolverhampton City Council","http://opendatacommunities.org/id/metropolitan-district-council/wolverhampton","WM MORRISONS STORE",62.1,"ALV - Darts & Comedy","5411","-","27/05/2020"
"Wolverhampton City Council","http://opendatacommunities.org/id/metropolitan-district-council/wolverhampton","A2BGo Carz",4.17,"LAC Transitions Team","4121","Client Allowances","27/05/2020"
"Wolverhampton City Council","http://opendatacommunities.org/id/metropolitan-district-council/wolverhampton","AMZNMktplace",129.16,"LAC Transitions Team","5999","Independant Living Allowance","27/05/2020"
"Wolverhampton City Council","http://opendatacommunities.org/id/metropolitan-district-council/wolverhampton","POUNDSTRETCHER 703",12.95,"LAC Transitions Team","5331","-","27/05/2020"
"Wolverhampton City Council","http://opendatacommunities.org/id/metropolitan-district-council/wolverhampton","EDMUNDSON ELECTRICAL L",94.29,"Cleaning of Buildings - General","5065","Equipment - R & M","27/05/2020"
"Wolverhampton City Council","http://opendatacommunities.org/id/metropolitan-district-council/wolverhampton","CARVER/WOLVERHAMPTON/L",86.95,"Cleaning of Buildings - General","5211","Equipment - R & M","27/05/2020"
"Wolverhampton City Council","http://opendatacommunities.org/id/metropolitan-district-council/wolverhampton","WM MORRISONS STORE",33.67,"Ernest Bold Court","5411","Provisions (Not for resale)","27/05/2020"
"Wolverhampton City Council","http://opendatacommunities.org/id/metropolitan-district-council/wolverhampton","THE POST OFFICE",9.12,"NRPF","9402","No Recourse to Public Funds","27/05/2020"
"Wolverhampton City Council","http://opendatacommunities.org/id/metropolitan-district-council/wolverhampton","AMZNMKTPLACE AMAZON.CO",200,"COVID 19 - Waste Service","5999","Equipment - Purchase","27/05/2020"
"Wolverhampton City Council","http://opendatacommunities.org/id/metropolitan-district-council/wolverhampton","WWW.EUROPALITE.EU",162,"COVID 19 - Waste Service","5999","Equipment - Purchase","27/05/2020"
"Wolverhampton City Council","http://opendatacommunities.org/id/metropolitan-district-council/wolverhampton","BARONS COURT HOTEL",125,"Mental Health Assessment & Care Mgmt","7011","Accommodation Costs","26/05/2020"
"Wolverhampton City Council","http://opendatacommunities.org/id/metropolitan-district-council/wolverhampton","ADOBE STOCK",19.99,"Communications & Marketing - General","5734","R4317","26/05/2020"
"Wolverhampton City Council","http://opendatacommunities.org/id/metropolitan-district-council/wolverhampton","ASDA SUPERSTORE",90,"Key to Inspiration","5411","-","26/05/2020"
"Wolverhampton City Council","http://opendatacommunities.org/id/metropolitan-district-council/wolverhampton","ASDA SUPERSTORE",10.9,"Key to Inspiration","5411","-","26/05/2020"
"Wolverhampton City Council","http://opendatacommunities.org/id/metropolitan-district-council/wolverhampton","ASDA SUPERSTORE",16.48,"Key to Inspiration","5411","Client Allowances","26/05/2020"
"Wolverhampton City Council","http://opendatacommunities.org/id/metropolitan-district-council/wolverhampton","ASDA SUPERSTORE",50,"Key to Inspiration","5411","-","26/05/2020"
"Wolverhampton City Council","http://opendatacommunities.org/id/metropolitan-district-council/wolverhampton","ASDA SUPERSTORE",3,"Key to Inspiration","5411","-","26/05/2020"
"Wolverhampton City Council","http://opendatacommunities.org/id/metropolitan-district-council/wolverhampton","AMZNMktplace",32.99,"Key to Inspiration","5999","-","26/05/2020"
"Wolverhampton City Council","http://opendatacommunities.org/id/metropolitan-district-council/wolverhampton","WM MORRISONS STORE",77.27,"ALV - Darts & Comedy","5411","-","26/05/2020"
"Wolverhampton City Council","http://opendatacommunities.org/id/metropolitan-district-council/wolverhampton","WM MORRISONS STORE",104.04,"Bradley Resource Centre","5411","Provisions (Not for resale)","26/05/2020"
"Wolverhampton City Council","http://opendatacommunities.org/id/metropolitan-district-council/wolverhampton","ARGOS LTD",-25,"Key to Inspiration","5310","Equipment - Purchase","26/05/2020"
"Wolverhampton City Council","http://opendatacommunities.org/id/metropolitan-district-council/wolverhampton","AMZNMktplace",45.82,"LAC Transitions Team","5999","Independant Living Allowance","26/05/2020"
"Wolverhampton City Council","http://opendatacommunities.org/id/metropolitan-district-council/wolverhampton","APPLE.COM/BILL",9.99,"Managing Director","5735","Computing - Purchase of Software","26/05/2020"
"Wolverhampton City Council","http://opendatacommunities.org/id/metropolitan-district-council/wolverhampton","TVLICENSING.CO.UK",157.5,"Upper Pendeford Farm Childrens Home","7392","Services - General Licences","26/05/2020"
"Wolverhampton City Council","http://opendatacommunities.org/id/metropolitan-district-council/wolverhampton","AMZNMktplace",22.98,"Emergency Duty Team","5999","-","26/05/2020"
"Wolverhampton City Council","http://opendatacommunities.org/id/metropolitan-district-council/wolverhampton","Amazon.co.uk AO2V625C5",31.59,"Business Support Services","5969","Equipment - Purchase","26/05/2020"
"Wolverhampton City Council","http://opendatacommunities.org/id/metropolitan-district-council/wolverhampton","TVLICENSING.CO.UK",157.5,"Ernest Bold Court","7392","Services - General Licences","26/05/2020"
"Wolverhampton City Council","http://opendatacommunities.org/id/metropolitan-district-council/wolverhampton","NATIONWIDE",500,"NRPF","6011","No Recourse to Public Funds","26/05/2020"
"Wolverhampton City Council","http://opendatacommunities.org/id/metropolitan-district-council/wolverhampton","Amazon.co.uk DQ18N9EJ5",34.37,"Duke Street Bungalows","5969","R4010","26/05/2020"
"Wolverhampton City Council","http://opendatacommunities.org/id/metropolitan-district-council/wolverhampton","WWW.IKEA.COM",78.29,"LAC Transitions Team","5712","Independant Living Allowance","25/05/2020"
"Wolverhampton City Council","http://opendatacommunities.org/id/metropolitan-district-council/wolverhampton","PO OLD HILL 0676",83.33,"LAC Transitions Team","6011","Client Allowances","25/05/2020"
"Wolverhampton City Council","http://opendatacommunities.org/id/metropolitan-district-council/wolverhampton","PCS STQ Vantage",412.5,"Business Support Services","7399","Equipment - Health and Safety","25/05/2020"
"Wolverhampton City Council","http://opendatacommunities.org/id/metropolitan-district-council/wolverhampton","Amazon.co.uk 7B3NA3HI5",57.55,"Business Support Services","5969","Equipment - Purchase","25/05/2020"
"Wolverhampton City Council","http://opendatacommunities.org/id/metropolitan-district-council/wolverhampton","Amazon.co.uk 4S7ML1TL5",30.08,"Business Support Services","5969","Equipment - Purchase","25/05/2020"
"Wolverhampton City Council","http://opendatacommunities.org/id/metropolitan-district-council/wolverhampton","Amazon.co.uk V52PP3F05",30.08,"Business Support Services","5969","Equipment - Purchase","25/05/2020"
"Wolverhampton City Council","http://opendatacommunities.org/id/metropolitan-district-council/wolverhampton","Amazon.co.uk NX34I3K45",30.08,"Business Support Services","5969","Equipment - Purchase","25/05/2020"
"Wolverhampton City Council","http://opendatacommunities.org/id/metropolitan-district-council/wolverhampton","Amazon.co.uk LF9QG6Z35",30.08,"Business Support Services","5969","Equipment - Purchase","25/05/2020"
"Wolverhampton City Council","http://opendatacommunities.org/id/metropolitan-district-council/wolverhampton","ASDA STORE",46,"LAC Transitions Team","5411","Client Allowances","25/05/2020"
"Wolverhampton City Council","http://opendatacommunities.org/id/metropolitan-district-council/wolverhampton","POST OFFICE COUNTER",5.88,"Adult Services - West","9402","Comms - Postage","25/05/2020"
"Wolverhampton City Council","http://opendatacommunities.org/id/metropolitan-district-council/wolverhampton","AMZNMKTPLACE AMAZON.CO",14.17,"Ernest Bold Court","5999","Equipment - Purchase","25/05/2020"
"Wolverhampton City Council","http://opendatacommunities.org/id/metropolitan-district-council/wolverhampton","AMZNMktplace",25.82,"Inclusion Support","5999","Computing - Consumables","25/05/2020"
"Wolverhampton City Council","http://opendatacommunities.org/id/metropolitan-district-council/wolverhampton","NATIONWIDE",500,"NRPF","6011","No Recourse to Public Funds","25/05/2020"
"Wolverhampton City Council","http://opendatacommunities.org/id/metropolitan-district-council/wolverhampton","NATIONWIDE",500,"NRPF","6011","No Recourse to Public Funds","25/05/2020"
"Wolverhampton City Council","http://opendatacommunities.org/id/metropolitan-district-council/wolverhampton","NATIONWIDE",500,"NRPF","6011","No Recourse to Public Funds","25/05/2020"
"Wolverhampton City Council","http://opendatacommunities.org/id/metropolitan-district-council/wolverhampton","NATIONWIDE",500,"NRPF","6011","No Recourse to Public Funds","25/05/2020"
"Wolverhampton City Council","http://opendatacommunities.org/id/metropolitan-district-council/wolverhampton","BARCLAYS",500,"NRPF","6011","No Recourse to Public Funds","25/05/2020"
"Wolverhampton City Council","http://opendatacommunities.org/id/metropolitan-district-council/wolverhampton","BARCLAYS",500,"NRPF","6011","No Recourse to Public Funds","25/05/2020"
"Wolverhampton City Council","http://opendatacommunities.org/id/metropolitan-district-council/wolverhampton","ROOKERY Sainsburys Ba",200,"Duke Street Bungalows","6011","Provisions (Not for resale)","25/05/2020"
"Wolverhampton City Council","http://opendatacommunities.org/id/metropolitan-district-council/wolverhampton","CO-OP GROUP 070362",10.8,"Northicote Farm","5411","Provisions (Not for resale)","25/05/2020"
"Wolverhampton City Council","http://opendatacommunities.org/id/metropolitan-district-council/wolverhampton","WICKES WOLVERHAMPTON",26.65,"Northicote Farm","5211","Materials","25/05/2020"
"Wolverhampton City Council","http://opendatacommunities.org/id/metropolitan-district-council/wolverhampton","Amazon.co.uk 3Y7QV4YL5",20.49,"Northicote Farm","5969","Equipment - Purchase","25/05/2020"
"Wolverhampton City Council","http://opendatacommunities.org/id/metropolitan-district-council/wolverhampton","ARGOS LTD",253.94,"LAC Transitions Team","5310","Independant Living Allowance","25/05/2020"
"Wolverhampton City Council","http://opendatacommunities.org/id/metropolitan-district-council/wolverhampton","WWW.CAMBRIDGEASSES",47,"LAC Transitions Team","8220","Independant Living Allowance","25/05/2020"
"Wolverhampton City Council","http://opendatacommunities.org/id/metropolitan-district-council/wolverhampton","123 REG LTD",143.88,"Strategic ICTS (ICT Serv Budget)","5968","Computing - Maint Agreements","25/05/2020"
"Wolverhampton City Council","http://opendatacommunities.org/id/metropolitan-district-council/wolverhampton","123 REG LTD",71.94,"Strategic ICTS (ICT Serv Budget)","5968","Computing - Maint Agreements","25/05/2020"
"Wolverhampton City Council","http://opendatacommunities.org/id/metropolitan-district-council/wolverhampton","ARGOS LTD",10.5,"LAC Transitions Team","5310","Grant Payments to Individuals","25/05/2020"
"Wolverhampton City Council","http://opendatacommunities.org/id/metropolitan-district-council/wolverhampton","ARGOS LTD",290.5,"LAC Transitions Team","5310","Grant Payments to Individuals","25/05/2020"
"Wolverhampton City Council","http://opendatacommunities.org/id/metropolitan-district-council/wolverhampton","GEN REGISTER OFFICE",14,"Lac Transitions","9399","Services - Supplies & Services to users","25/05/2020"
"Wolverhampton City Council","http://opendatacommunities.org/id/metropolitan-district-council/wolverhampton","FREEPIK & FLATICON",7.68,"Communications & Marketing - General","7221","R4317","25/05/2020"
"Wolverhampton City Council","http://opendatacommunities.org/id/metropolitan-district-council/wolverhampton","NAMESCO",-100,"Communications & Marketing - General","4816","R4317","25/05/2020"
"Wolverhampton City Council","http://opendatacommunities.org/id/metropolitan-district-council/wolverhampton","AMZNMktplace",65.69,"Key to Inspiration","5999","-","25/05/2020"
"Wolverhampton City Council","http://opendatacommunities.org/id/metropolitan-district-council/wolverhampton","WM MORRISONS STORE",33,"ALV - Darts & Comedy","5411","-","25/05/2020"
"Wolverhampton City Council","http://opendatacommunities.org/id/metropolitan-district-council/wolverhampton","SCREWFIX DIRECT",17.49,"ALV - Darts & Comedy","5200","-","25/05/2020"
"Wolverhampton City Council","http://opendatacommunities.org/id/metropolitan-district-council/wolverhampton","MCOLLS",62.77,"ALV - Darts & Comedy","5499","-","25/05/2020"
"Wolverhampton City Council","http://opendatacommunities.org/id/metropolitan-district-council/wolverhampton","MCOLLS",11.26,"ALV - Darts & Comedy","5499","-","25/05/2020"
"Wolverhampton City Council","http://opendatacommunities.org/id/metropolitan-district-council/wolverhampton","DIXONS FAMILY BUTCHERS",158,"Bradley Resource Centre","5499","Provisions (Not for resale)","25/05/2020"
"Wolverhampton City Council","http://opendatacommunities.org/id/metropolitan-district-council/wolverhampton","WM MORRISONS STORE",118.94,"Bradley Resource Centre","5411","Provisions (Not for resale)","25/05/2020"
"Wolverhampton City Council","http://opendatacommunities.org/id/metropolitan-district-council/wolverhampton","ICELAND",206.44,"Key to Inspiration","5411","Provisions (Not for resale)","25/05/2020"
"Wolverhampton City Council","http://opendatacommunities.org/id/metropolitan-district-council/wolverhampton","ASDA SUPERSTORE",97.87,"Key to Inspiration","5411","Provisions (Not for resale)","25/05/2020"
"Wolverhampton City Council","http://opendatacommunities.org/id/metropolitan-district-council/wolverhampton","ASDA SUPERSTORE",61.5,"Key to Inspiration","5411","Provisions (Not for resale)","25/05/2020"
"Wolverhampton City Council","http://opendatacommunities.org/id/metropolitan-district-council/wolverhampton","AMZNMktplace",59.14,"LAC Transitions Team","5999","Independant Living Allowance","25/05/2020"
"Wolverhampton City Council","http://opendatacommunities.org/id/metropolitan-district-council/wolverhampton","ARGOS LTD",149.99,"LAC Transitions Team","5310","Independant Living Allowance","25/05/2020"
"Wolverhampton City Council","http://opendatacommunities.org/id/metropolitan-district-council/wolverhampton","AMZNMktplace",66.66,"LAC Transitions Team","5999","Independant Living Allowance","25/05/2020"
"Wolverhampton City Council","http://opendatacommunities.org/id/metropolitan-district-council/wolverhampton","CURRYS ONLINE",154.16,"LAC Transitions Team","5732","Independant Living Allowance","25/05/2020"
"Wolverhampton City Council","http://opendatacommunities.org/id/metropolitan-district-council/wolverhampton","AMZNMktplace",33.32,"LAC Transitions Team","5999","Independant Living Allowance","25/05/2020"
"Wolverhampton City Council","http://opendatacommunities.org/id/metropolitan-district-council/wolverhampton","AMZNMktplace",17.89,"Power2 Team","5999","Direct Work With Children","22/05/2020"
"Wolverhampton City Council","http://opendatacommunities.org/id/metropolitan-district-council/wolverhampton","WM MORRISONS STORE",176.85,"ALV - Darts & Comedy","5411","-","22/05/2020"
"Wolverhampton City Council","http://opendatacommunities.org/id/metropolitan-district-council/wolverhampton","A2BGo Carz",4.17,"LAC Transitions Team","4121","Client Allowances","22/05/2020"
"Wolverhampton City Council","http://opendatacommunities.org/id/metropolitan-district-council/wolverhampton","AMZNMktplace",27.99,"Youth Offending Team","5999","Cleaning Supplies and Materials","22/05/2020"
"Wolverhampton City Council","http://opendatacommunities.org/id/metropolitan-district-council/wolverhampton","PPOINT_ WEDNESFIELD PR",4.57,"LAC Transitions Team","5411","Client Allowances","22/05/2020"
"Wolverhampton City Council","http://opendatacommunities.org/id/metropolitan-district-council/wolverhampton","Amazon.co.uk U31OX1E05",13.99,"Emergency Duty Team","5969","-","22/05/2020"
"Wolverhampton City Council","http://opendatacommunities.org/id/metropolitan-district-council/wolverhampton","THREE-BILLPAY(IVR)",43.25,"LAC Transitions Team","4814","Comms - Mobile Telephones","22/05/2020"
"Wolverhampton City Council","http://opendatacommunities.org/id/metropolitan-district-council/wolverhampton","EE TOPUP  VESTA",50,"Adult Services - West","4814","Comms - Mobile Telephones","22/05/2020"
"Wolverhampton City Council","http://opendatacommunities.org/id/metropolitan-district-council/wolverhampton","AMZNMKTPLACE AMAZON.CO",13.94,"Ernest Bold Court","5999","Equipment - Purchase","22/05/2020"
"Wolverhampton City Council","http://opendatacommunities.org/id/metropolitan-district-council/wolverhampton","AMZNMktplace",29.92,"Ernest Bold Court","5999","Materials","22/05/2020"
"Wolverhampton City Council","http://opendatacommunities.org/id/metropolitan-district-council/wolverhampton","AMZNMktplace",119.92,"Ernest Bold Court","5999","Materials","22/05/2020"
"Wolverhampton City Council","http://opendatacommunities.org/id/metropolitan-district-council/wolverhampton","THE POST OFFICE",4.7,"Cemeteries","9402","Comms - Postage","21/05/2020"
"Wolverhampton City Council","http://opendatacommunities.org/id/metropolitan-district-council/wolverhampton","ZORO UK",79.43,"Passenger Transport - General","5072","-","21/05/2020"
"Wolverhampton City Council","http://opendatacommunities.org/id/metropolitan-district-council/wolverhampton","APPLE.COM/UK",204.17,"Strategic ICTS (ICT Serv Budget)","5732","Computing - Consumables","21/05/2020"
"Wolverhampton City Council","http://opendatacommunities.org/id/metropolitan-district-council/wolverhampton","FACEBK 7ATDTR2BR2",-12.58,"Communications & Marketing - General","7311","R4317","21/05/2020"
"Wolverhampton City Council","http://opendatacommunities.org/id/metropolitan-district-council/wolverhampton","GOOGLE  ADS9680351324",500,"Communications & Marketing - General","7311","R4317","21/05/2020"
"Wolverhampton City Council","http://opendatacommunities.org/id/metropolitan-district-council/wolverhampton","CITY OF WOLVERHAMPTON",11,"Court of Protection, Funerals Prot Prop","9399","R4408","21/05/2020"
"Wolverhampton City Council","http://opendatacommunities.org/id/metropolitan-district-council/wolverhampton","CITY OF WOLVERHAMPTON",22,"Court of Protection, Funerals Prot Prop","9399","R4408","21/05/2020"
"Wolverhampton City Council","http://opendatacommunities.org/id/metropolitan-district-council/wolverhampton","NETFLIX.COM",11.99,"Key to Inspiration","4899","-","21/05/2020"
"Wolverhampton City Council","http://opendatacommunities.org/id/metropolitan-district-council/wolverhampton","WWW.BRISTOWSUTOR.C",0,"Revenues","9399","VAT","21/05/2020"
"Wolverhampton City Council","http://opendatacommunities.org/id/metropolitan-district-council/wolverhampton","AMZNMktplace",5.49,"Emergency Duty Team","5999","-","21/05/2020"
"Wolverhampton City Council","http://opendatacommunities.org/id/metropolitan-district-council/wolverhampton","Amazon.co.uk U028F8D15",170.46,"Foundation Studies","5969","Books","21/05/2020"
"Wolverhampton City Council","http://opendatacommunities.org/id/metropolitan-district-council/wolverhampton","SAINSBURYS 2040",89.3,"Duke Street Bungalows","5411","Provisions (Not for resale)","21/05/2020"
"Wolverhampton City Council","http://opendatacommunities.org/id/metropolitan-district-council/wolverhampton","123 REG LTD",11.99,"Technical Support","4816","-","21/05/2020"
"Wolverhampton City Council","http://opendatacommunities.org/id/metropolitan-district-council/wolverhampton","WWW.WILMINGTON.CO.",80,"Workforce Development","8699","Training Expenses","21/05/2020"
"Wolverhampton City Council","http://opendatacommunities.org/id/metropolitan-district-council/wolverhampton","AMZNMktplace",42.49,"Ernest Bold Court","5999","Equipment - Purchase","21/05/2020"
"Wolverhampton City Council","http://opendatacommunities.org/id/metropolitan-district-council/wolverhampton","AMZNMKTPLACE AMAZON.CO",31.1,"Duke Street Bungalows","5999","R4010","21/05/2020"
"Wolverhampton City Council","http://opendatacommunities.org/id/metropolitan-district-council/wolverhampton","ARGOS LTD",93.71,"LAC Transitions Team","5310","Client Allowances","20/05/2020"
"Wolverhampton City Council","http://opendatacommunities.org/id/metropolitan-district-council/wolverhampton","123 REG LTD",619.5,"Strategic ICTS (ICT Serv Budget)","5968","Computing - Maint Agreements","20/05/2020"
"Wolverhampton City Council","http://opendatacommunities.org/id/metropolitan-district-council/wolverhampton","DEBT RECOVERY PLUS LTD",160,"Strategic ICTS (ICT Serv Budget)","7399","-","20/05/2020"
"Wolverhampton City Council","http://opendatacommunities.org/id/metropolitan-district-council/wolverhampton","FARMFOODS 603",35,"Bradley Resource Centre","5411","Cleaning Supplies and Materials","20/05/2020"
"Wolverhampton City Council","http://opendatacommunities.org/id/metropolitan-district-council/wolverhampton","POST OFFICE COUNTER",101.4,"Macmillan Welfare Rights","9402","Comms - Postage","20/05/2020"
"Wolverhampton City Council","http://opendatacommunities.org/id/metropolitan-district-council/wolverhampton","SHROPSHIRESTAR.COM",66,"Communications & Marketing - General","5994","R4317","20/05/2020"
"Wolverhampton City Council","http://opendatacommunities.org/id/metropolitan-district-council/wolverhampton","ARGOS LTD",61.6,"LAC Transitions Accommodation","5310","Accommodation Costs","20/05/2020"
"Wolverhampton City Council","http://opendatacommunities.org/id/metropolitan-district-council/wolverhampton","CT WOLVERHAMPTON",116.67,"LAC Transitions Team","8398","Client Allowances","20/05/2020"
"Wolverhampton City Council","http://opendatacommunities.org/id/metropolitan-district-council/wolverhampton","SITEBOX LIMITED",359.88,"ALV - Darts & Comedy","5072","-","20/05/2020"
"Wolverhampton City Council","http://opendatacommunities.org/id/metropolitan-district-council/wolverhampton","FARMFOODS 603",105.79,"Bradley Resource Centre","5411","Provisions (Not for resale)","20/05/2020"
"Wolverhampton City Council","http://opendatacommunities.org/id/metropolitan-district-council/wolverhampton","SP   PHOTOSYMBOLS LTD",150,"Document Centre - General","5734","Subscriptions","20/05/2020"
"Wolverhampton City Council","http://opendatacommunities.org/id/metropolitan-district-council/wolverhampton","CUMMINGS BROTHERS LOCK",20.83,"Public Conveniences","7399","Equipment - R & M","20/05/2020"
"Wolverhampton City Council","http://opendatacommunities.org/id/metropolitan-district-council/wolverhampton","POST OFFICE COUNTER",7.8,"MASH","9402","-","20/05/2020"
"Wolverhampton City Council","http://opendatacommunities.org/id/metropolitan-district-council/wolverhampton","AMZNMKTPLACE AMAZON.CO",24.92,"Duke Street Bungalows","5999","R4010","20/05/2020"
"Wolverhampton City Council","http://opendatacommunities.org/id/metropolitan-district-council/wolverhampton","AMZNMKTPLACE AMAZON.CO",34.85,"Duke Street Bungalows","5999","R4010","20/05/2020"
"Wolverhampton City Council","http://opendatacommunities.org/id/metropolitan-district-council/wolverhampton","NATWEST BANK",200,"Duke Street Bungalows","6011","Provisions (Not for resale)","20/05/2020"
"Wolverhampton City Council","http://opendatacommunities.org/id/metropolitan-district-council/wolverhampton","NoteMachine ATM",16.67,"LAC Transitions Team","6011","Client Allowances","20/05/2020"
"Wolverhampton City Council","http://opendatacommunities.org/id/metropolitan-district-council/wolverhampton","NoteMachine ATM",133.33,"LAC Transitions Team","6011","Client Allowances","20/05/2020"
"Wolverhampton City Council","http://opendatacommunities.org/id/metropolitan-district-council/wolverhampton","DVLA VEHICLE TAX",267.5,"Fleet Management","9311","R3004","20/05/2020"
"Wolverhampton City Council","http://opendatacommunities.org/id/metropolitan-district-council/wolverhampton","DVLA VEHICLE TAX",167.5,"Fleet Management","9311","R3004","20/05/2020"
"Wolverhampton City Council","http://opendatacommunities.org/id/metropolitan-district-council/wolverhampton","DVLA VEHICLE TAX",267.5,"Fleet Management","9311","R3004","20/05/2020"
"Wolverhampton City Council","http://opendatacommunities.org/id/metropolitan-district-council/wolverhampton","DVLA VEHICLE TAX",267.5,"Fleet Management","9311","R3004","20/05/2020"
"Wolverhampton City Council","http://opendatacommunities.org/id/metropolitan-district-council/wolverhampton","DVLA VEHICLE TAX",617.5,"Fleet Management","9311","R3004","20/05/2020"
"Wolverhampton City Council","http://opendatacommunities.org/id/metropolitan-district-council/wolverhampton","DVLA VEHICLE TAX",167.5,"Fleet Management","9311","R3004","20/05/2020"
"Wolverhampton City Council","http://opendatacommunities.org/id/metropolitan-district-council/wolverhampton","DVLA VEHICLE TAX",167.5,"Fleet Management","9311","R3004","20/05/2020"
"Wolverhampton City Council","http://opendatacommunities.org/id/metropolitan-district-council/wolverhampton","DVLA VEHICLE TAX",167.5,"Fleet Management","9311","R3004","20/05/2020"
"Wolverhampton City Council","http://opendatacommunities.org/id/metropolitan-district-council/wolverhampton","DVLA VEHICLE TAX",267.5,"Fleet Management","9311","R3004","20/05/2020"
"Wolverhampton City Council","http://opendatacommunities.org/id/metropolitan-district-council/wolverhampton","DVLA VEHICLE TAX",167.5,"Fleet Management","9311","R3004","20/05/2020"
"Wolverhampton City Council","http://opendatacommunities.org/id/metropolitan-district-council/wolverhampton","DVLA VEHICLE TAX",722.5,"Fleet Management","9311","R3004","20/05/2020"
"Wolverhampton City Council","http://opendatacommunities.org/id/metropolitan-district-council/wolverhampton","DVLA VEHICLE TAX",167.5,"Fleet Management","9311","R3004","20/05/2020"
"Wolverhampton City Council","http://opendatacommunities.org/id/metropolitan-district-council/wolverhampton","DVLA VEHICLE TAX",167.5,"Fleet Management","9311","R3004","20/05/2020"
"Wolverhampton City Council","http://opendatacommunities.org/id/metropolitan-district-council/wolverhampton","DVLA VEHICLE TAX",267.5,"Fleet Management","9311","R3004","20/05/2020"
"Wolverhampton City Council","http://opendatacommunities.org/id/metropolitan-district-council/wolverhampton","DVLA VEHICLE TAX",207.5,"Fleet Management","9311","R3004","20/05/2020"
"Wolverhampton City Council","http://opendatacommunities.org/id/metropolitan-district-council/wolverhampton","ROYAL BK OF SCOTLAND",200,"Duke Street Bungalows","6011","Provisions (Not for resale)","19/05/2020"
"Wolverhampton City Council","http://opendatacommunities.org/id/metropolitan-district-council/wolverhampton","POST OFFICE COUNTER",31.2,"Macmillan Welfare Rights","9402","Comms - Postage","19/05/2020"
"Wolverhampton City Council","http://opendatacommunities.org/id/metropolitan-district-council/wolverhampton","FACEBK QWQH3TEAR2",500,"Communications & Marketing - General","7311","R4317","19/05/2020"
"Wolverhampton City Council","http://opendatacommunities.org/id/metropolitan-district-council/wolverhampton","COZENS & COLE LTD",140.13,"Civic Centre Repairs & Maintenance","5251","Equipment - R & M","19/05/2020"
"Wolverhampton City Council","http://opendatacommunities.org/id/metropolitan-district-council/wolverhampton","THE BAG BROKER",162.24,"ALV - Darts & Comedy","5499","-","19/05/2020"
"Wolverhampton City Council","http://opendatacommunities.org/id/metropolitan-district-council/wolverhampton","WM MORRISONS STORE",148.68,"Bradley Resource Centre","5411","Provisions (Not for resale)","19/05/2020"
"Wolverhampton City Council","http://opendatacommunities.org/id/metropolitan-district-council/wolverhampton","Amazon.co.uk M18QO1UQ4",20.66,"Youth Offending Team","5969","Cleaning Supplies and Materials","19/05/2020"
"Wolverhampton City Council","http://opendatacommunities.org/id/metropolitan-district-council/wolverhampton","WWW.VOUCHEREXPRESS.CO.",245.75,"Youth Offending Team","5947","Provisions (Not for resale)","19/05/2020"
"Wolverhampton City Council","http://opendatacommunities.org/id/metropolitan-district-council/wolverhampton","B & Q 1243",12.62,"Public Conveniences","5200","-","19/05/2020"
"Wolverhampton City Council","http://opendatacommunities.org/id/metropolitan-district-council/wolverhampton","WWW.CARPHONEWAREHO",39.99,"COVID 19 - Children�s Social Care","4812","Comms - Mobile Telephones","19/05/2020"
"Wolverhampton City Council","http://opendatacommunities.org/id/metropolitan-district-council/wolverhampton","WWW.CARPHONEWAREHO",39.99,"COVID 19 - Children�s Social Care","4812","Comms - Mobile Telephones","19/05/2020"
"Wolverhampton City Council","http://opendatacommunities.org/id/metropolitan-district-council/wolverhampton","AMZNMktplace",35.99,"Upper Pendeford Farm Childrens Home","5999","Equipment - Health and Safety","19/05/2020"
"Wolverhampton City Council","http://opendatacommunities.org/id/metropolitan-district-council/wolverhampton","AMZNMktplace",0.83,"EIP Locality 1","5999","-","19/05/2020"
"Wolverhampton City Council","http://opendatacommunities.org/id/metropolitan-district-council/wolverhampton","SHELL WILLENHALL R",47.24,"Patching","5541","Petrol","19/05/2020"
"Wolverhampton City Council","http://opendatacommunities.org/id/metropolitan-district-council/wolverhampton","POST OFFICE COUNTER",4.28,"Condition Surveys","9402","Comms - Postage","19/05/2020"
"Wolverhampton City Council","http://opendatacommunities.org/id/metropolitan-district-council/wolverhampton","DRI Logitech Store",43.32,"Fleet Management","5734","Computing - Purchase of Hardware","19/05/2020"
"Wolverhampton City Council","http://opendatacommunities.org/id/metropolitan-district-council/wolverhampton","AMZNMktplace",64.97,"Music Support Team","5999","Provisions (Not for resale)","19/05/2020"
"Wolverhampton City Council","http://opendatacommunities.org/id/metropolitan-district-council/wolverhampton","SCREWFIX DIRECT",21.65,"Cemeteries","5200","Equipment - Health and Safety","18/05/2020"
"Wolverhampton City Council","http://opendatacommunities.org/id/metropolitan-district-council/wolverhampton","PO BIRMINGHAM NEW RD01",130,"LAC Transitions Team","6011","Independant Living Allowance","18/05/2020"
"Wolverhampton City Council","http://opendatacommunities.org/id/metropolitan-district-council/wolverhampton","CBA TENABLE",2544.74,"Strategic ICTS (ICT Serv Budget)","5817","-","18/05/2020"
"Wolverhampton City Council","http://opendatacommunities.org/id/metropolitan-district-council/wolverhampton","AMZNMKTPLACE AMAZON.CO",12.46,"Power2 Team","5999","Direct Work With Children","18/05/2020"
"Wolverhampton City Council","http://opendatacommunities.org/id/metropolitan-district-council/wolverhampton","GEN REGISTER OFFICE",14,"Lac Transitions","9399","Services - Supplies & Services to users","18/05/2020"
"Wolverhampton City Council","http://opendatacommunities.org/id/metropolitan-district-council/wolverhampton","Just Eat",17.5,"Key to Inspiration","5814","Educ Trips, Holidays, Outings, Activity","18/05/2020"
"Wolverhampton City Council","http://opendatacommunities.org/id/metropolitan-district-council/wolverhampton","WM MORRISONS STORE",264.73,"ALV - Darts & Comedy","5411","-","18/05/2020"
"Wolverhampton City Council","http://opendatacommunities.org/id/metropolitan-district-council/wolverhampton","CARRIER BAG SHOP",279.72,"ALV - Darts & Comedy","7399","-","18/05/2020"
"Wolverhampton City Council","http://opendatacommunities.org/id/metropolitan-district-council/wolverhampton","THE BAG BROKER",110.21,"ALV - Darts & Comedy","5499","-","18/05/2020"
"Wolverhampton City Council","http://opendatacommunities.org/id/metropolitan-district-council/wolverhampton","LION PICTURE FRAMING S",102.35,"Audience Development","5999","R4007","18/05/2020"
"Wolverhampton City Council","http://opendatacommunities.org/id/metropolitan-district-council/wolverhampton","CardtronicsUK",160,"LAC Transitions Accommodation","6011","Equipment - Purchase","18/05/2020"
"Wolverhampton City Council","http://opendatacommunities.org/id/metropolitan-district-council/wolverhampton","CURRYS ONLINE",170,"LAC Transitions Team","5732","Independant Living Allowance","18/05/2020"
"Wolverhampton City Council","http://opendatacommunities.org/id/metropolitan-district-council/wolverhampton","Prime Video FD5GK50X5",4.49,"Ernest Bold Court","5735","Provisions (Not for resale)","18/05/2020"
"Wolverhampton City Council","http://opendatacommunities.org/id/metropolitan-district-council/wolverhampton","AMZNMKTPLACE AMAZON.CO",2.32,"Youth Offending Team","5999","Direct Work With Children","18/05/2020"
"Wolverhampton City Council","http://opendatacommunities.org/id/metropolitan-district-council/wolverhampton","ABILITY SMART",498,"LAC Team","5734","Computing - Purchase of Software","18/05/2020"
"Wolverhampton City Council","http://opendatacommunities.org/id/metropolitan-district-council/wolverhampton","POST OFFICE COUNTER",7.5,"Telecare","9402","Comms - Postage","18/05/2020"
"Wolverhampton City Council","http://opendatacommunities.org/id/metropolitan-district-council/wolverhampton","WIX.COM",41.05,"Technical Support","5968","-","18/05/2020"
"Wolverhampton City Council","http://opendatacommunities.org/id/metropolitan-district-council/wolverhampton","RONTEC BILSTON",4.41,"Ernest Bold Court","5541","Provisions (Not for resale)","18/05/2020"
"Wolverhampton City Council","http://opendatacommunities.org/id/metropolitan-district-council/wolverhampton","Amazon.co.uk M18IX12K4",11.4,"Music Support Team","5969","Provisions (Not for resale)","18/05/2020"
"Wolverhampton City Council","http://opendatacommunities.org/id/metropolitan-district-council/wolverhampton","AMZNMKTPLACE AMAZON.CO",10.7,"Music Support Team","5999","Books","18/05/2020"
"Wolverhampton City Council","http://opendatacommunities.org/id/metropolitan-district-council/wolverhampton","BLOC BLINDS",216,"Passenger Transport - General","5734","-","15/05/2020"
"Wolverhampton City Council","http://opendatacommunities.org/id/metropolitan-district-council/wolverhampton","EBUYER (UK) LTD",296.48,"Strategic ICTS (ICT Serv Budget)","5722","Computing - Purchase of Hardware","15/05/2020"
"Wolverhampton City Council","http://opendatacommunities.org/id/metropolitan-district-council/wolverhampton","NAMESCO",100,"Communications & Marketing - General","4816","R4317","15/05/2020"
"Wolverhampton City Council","http://opendatacommunities.org/id/metropolitan-district-council/wolverhampton","BOOHOO.COM",127.44,"Key to Inspiration","5691","-","15/05/2020"
"Wolverhampton City Council","http://opendatacommunities.org/id/metropolitan-district-council/wolverhampton","Foot Locker Europe.com",53.99,"Key to Inspiration","5661","-","15/05/2020"
"Wolverhampton City Council","http://opendatacommunities.org/id/metropolitan-district-council/wolverhampton","WM MORRISONS STORE",19.8,"ALV - Darts & Comedy","5411","-","15/05/2020"
"Wolverhampton City Council","http://opendatacommunities.org/id/metropolitan-district-council/wolverhampton","THE BAG BROKER",1217.88,"ALV - Darts & Comedy","5499","-","15/05/2020"
"Wolverhampton City Council","http://opendatacommunities.org/id/metropolitan-district-council/wolverhampton","WM MORRISONS STORE",43.43,"Bradley Resource Centre","5411","Provisions (Not for resale)","15/05/2020"
"Wolverhampton City Council","http://opendatacommunities.org/id/metropolitan-district-council/wolverhampton","NATWEST BANK",250,"Court Team","6011","Section 17","15/05/2020"
"Wolverhampton City Council","http://opendatacommunities.org/id/metropolitan-district-council/wolverhampton","ARGOS LTD",-150,"Key to Inspiration","5310","Equipment - Purchase","15/05/2020"
"Wolverhampton City Council","http://opendatacommunities.org/id/metropolitan-district-council/wolverhampton","ICELAND",197.26,"Key to Inspiration","5411","Provisions (Not for resale)","15/05/2020"
"Wolverhampton City Council","http://opendatacommunities.org/id/metropolitan-district-council/wolverhampton","ASDA SUPERSTORE",168.22,"Key to Inspiration","5411","Provisions (Not for resale)","15/05/2020"
"Wolverhampton City Council","http://opendatacommunities.org/id/metropolitan-district-council/wolverhampton","ASDA SUPERSTORE",153.68,"Key to Inspiration","5411","Provisions (Not for resale)","15/05/2020"
"Wolverhampton City Council","http://opendatacommunities.org/id/metropolitan-district-council/wolverhampton","AMZNMktplace",34.37,"Bradley Resource Centre","5999","Catering","15/05/2020"
"Wolverhampton City Council","http://opendatacommunities.org/id/metropolitan-district-council/wolverhampton","B M RETAIL",52.46,"LAC Transitions Team","5310","Client Allowances","15/05/2020"
"Wolverhampton City Council","http://opendatacommunities.org/id/metropolitan-district-council/wolverhampton","INTERFLORA BRITISH UNI",39.17,"Fostering Team & Allowances","5992","No Recourse to Public Funds","15/05/2020"
"Wolverhampton City Council","http://opendatacommunities.org/id/metropolitan-district-council/wolverhampton","APPLE.COM/BILL",2.07,"Corporate Parenting","5735","Computing - Purchase of Software","15/05/2020"
"Wolverhampton City Council","http://opendatacommunities.org/id/metropolitan-district-council/wolverhampton","ASDA STORES 7134",5,"Upper Pendeford Farm Childrens Home","5411","Provisions (Not for resale)","15/05/2020"
"Wolverhampton City Council","http://opendatacommunities.org/id/metropolitan-district-council/wolverhampton","AMZNMKTPLACE AMAZON.CO",22.45,"Upper Pendeford Farm Childrens Home","5999","Provisions (Not for resale)","15/05/2020"
"Wolverhampton City Council","http://opendatacommunities.org/id/metropolitan-district-council/wolverhampton","AMZNMktplace",188.13,"COVID 19 - Personal Protective equipment","5999","Equipment - Health and Safety","15/05/2020"
"Wolverhampton City Council","http://opendatacommunities.org/id/metropolitan-district-council/wolverhampton","AMZNMktplace",19.15,"EIP Locality 1","5999","-","15/05/2020"
"Wolverhampton City Council","http://opendatacommunities.org/id/metropolitan-district-council/wolverhampton","TIPPERS WOLVERHAMPTON",177.9,"Patching","5072","R4007","15/05/2020"
"Wolverhampton City Council","http://opendatacommunities.org/id/metropolitan-district-council/wolverhampton","AMZNMktplace",29.97,"LAC Transitions Accommodation","5999","Accommodation Costs","15/05/2020"
"Wolverhampton City Council","http://opendatacommunities.org/id/metropolitan-district-council/wolverhampton","WWW.FTA.CO.UK",142.5,"COVID 19 - Personal Protective equipment","8999","Materials","15/05/2020"
"Wolverhampton City Council","http://opendatacommunities.org/id/metropolitan-district-council/wolverhampton","E C STRAITON RUGEL",129.3,"Northicote Farm","0742","Professional fees","15/05/2020"
"Wolverhampton City Council","http://opendatacommunities.org/id/metropolitan-district-council/wolverhampton","PAYPAL  PROGREEN",102.17,"Northicote Farm","5251","Equipment - Purchase","15/05/2020"
"Wolverhampton City Council","http://opendatacommunities.org/id/metropolitan-district-council/wolverhampton","INTERFLORA BRITISH UNI",39.17,"Fostering Team & Allowances","5992","No Recourse to Public Funds","14/05/2020"
"Wolverhampton City Council","http://opendatacommunities.org/id/metropolitan-district-council/wolverhampton","AMZNMktplace",70.41,"Civic Centre","5999","Equipment - Health and Safety","14/05/2020"
"Wolverhampton City Council","http://opendatacommunities.org/id/metropolitan-district-council/wolverhampton","PEARSON ED LTD",50,"LAC Transitions Team","8299","Independant Living Allowance","14/05/2020"
"Wolverhampton City Council","http://opendatacommunities.org/id/metropolitan-district-council/wolverhampton","NAMESCO",59.95,"Inclusion Support","4816","R4317","14/05/2020"
"Wolverhampton City Council","http://opendatacommunities.org/id/metropolitan-district-council/wolverhampton","AMZNMKTPLACE AMAZON.CO",271.56,"Key to Inspiration","5999","Educ Trips, Holidays, Outings, Activity","14/05/2020"
"Wolverhampton City Council","http://opendatacommunities.org/id/metropolitan-district-council/wolverhampton","WM MORRISONS STORE",413.25,"COVID 19 - Food Distribution Hub","5411","Provisions (Not for resale)","14/05/2020"
"Wolverhampton City Council","http://opendatacommunities.org/id/metropolitan-district-council/wolverhampton","ARGOS LTD",119.12,"LAC Transitions Team","5310","Client Allowances","14/05/2020"
"Wolverhampton City Council","http://opendatacommunities.org/id/metropolitan-district-council/wolverhampton","ARGOS LTD",177.45,"LAC Transitions Team","5310","Client Allowances","14/05/2020"
"Wolverhampton City Council","http://opendatacommunities.org/id/metropolitan-district-council/wolverhampton","ARGOS LTD",140.78,"LAC Transitions Team","5310","Client Allowances","14/05/2020"
"Wolverhampton City Council","http://opendatacommunities.org/id/metropolitan-district-council/wolverhampton","ARGOS LTD",123.94,"Bradley Resource Centre","5310","Equipment - Purchase","14/05/2020"
"Wolverhampton City Council","http://opendatacommunities.org/id/metropolitan-district-council/wolverhampton","B&M 333 - AN BENTLEY B",6.98,"Children & Family Contact Services","5399","Cleaning Supplies and Materials","13/05/2020"
"Wolverhampton City Council","http://opendatacommunities.org/id/metropolitan-district-council/wolverhampton","P.F. CUSACK TOOL SUPPL",165.75,"Waste Coll & Recycling Serv General","5211","Equipment - Health and Safety","13/05/2020"
"Wolverhampton City Council","http://opendatacommunities.org/id/metropolitan-district-council/wolverhampton","WM MORRISONS STORE",60.83,"COVID 19 - Food Distribution Hub","5411","Provisions (Not for resale)","13/05/2020"
"Wolverhampton City Council","http://opendatacommunities.org/id/metropolitan-district-council/wolverhampton","AMZNMKTPLACE AMAZON.CO",47.94,"ALV - Darts & Comedy","5999","-","13/05/2020"
"Wolverhampton City Council","http://opendatacommunities.org/id/metropolitan-district-council/wolverhampton","ARGOS LTD",175,"Key to Inspiration","5310","R4010","13/05/2020"
"Wolverhampton City Council","http://opendatacommunities.org/id/metropolitan-district-council/wolverhampton","WWW.VOUCHEREXPRESS.CO.",245.75,"Youth Offending Team","5947","Provisions (Not for resale)","13/05/2020"
"Wolverhampton City Council","http://opendatacommunities.org/id/metropolitan-district-council/wolverhampton","CardtronicsUK",60,"LAC Team","6011","Financial Assistance In Exceptional Circ","13/05/2020"
"Wolverhampton City Council","http://opendatacommunities.org/id/metropolitan-district-council/wolverhampton","Amazon.co.uk 997VB1LO5",92.96,"Foundation Studies","5969","Books","13/05/2020"
"Wolverhampton City Council","http://opendatacommunities.org/id/metropolitan-district-council/wolverhampton","BLOXWICH HARDWARE",4.17,"LAC Transitions Accommodation","5251","Client Allowances","13/05/2020"
"Wolverhampton City Council","http://opendatacommunities.org/id/metropolitan-district-council/wolverhampton","BLOXWICH HARDWARE",12.48,"LAC Transitions Accommodation","5251","Client Allowances","13/05/2020"
"Wolverhampton City Council","http://opendatacommunities.org/id/metropolitan-district-council/wolverhampton","HOME & MOTORSAVE (PERT",3.32,"Independant Living Services","5039","Equipment - Health and Safety","13/05/2020"
"Wolverhampton City Council","http://opendatacommunities.org/id/metropolitan-district-council/wolverhampton","AMZNMktplace",38.32,"LAC Transitions Accommodation","5999","Accommodation Costs","13/05/2020"
"Wolverhampton City Council","http://opendatacommunities.org/id/metropolitan-district-council/wolverhampton","RICS COM GBP CYBS",104,"Workforce Development","8699","Training Expenses","13/05/2020"
"Wolverhampton City Council","http://opendatacommunities.org/id/metropolitan-district-council/wolverhampton","123 REG LTD",965.28,"Strategic ICTS (ICT Serv Budget)","4816","Computing - Maint Agreements","12/05/2020"
"Wolverhampton City Council","http://opendatacommunities.org/id/metropolitan-district-council/wolverhampton","ARGOS LTD",95,"LAC Transitions Team","5310","Client Allowances","12/05/2020"
"Wolverhampton City Council","http://opendatacommunities.org/id/metropolitan-district-council/wolverhampton","SETON",237,"ALV - Darts & Comedy","5099","-","12/05/2020"
"Wolverhampton City Council","http://opendatacommunities.org/id/metropolitan-district-council/wolverhampton","WM MORRISONS STORE",94.4,"Bradley Resource Centre","5411","Provisions (Not for resale)","12/05/2020"
"Wolverhampton City Council","http://opendatacommunities.org/id/metropolitan-district-council/wolverhampton","SCREWFIX DIRECT",13.73,"Hickman Avenue Depot","5200","Equipment - Health and Safety","12/05/2020"
"Wolverhampton City Council","http://opendatacommunities.org/id/metropolitan-district-council/wolverhampton","COSTCUTTER JD CONVENIE",13.33,"LAC Transitions Team","5411","Client Allowances","12/05/2020"
"Wolverhampton City Council","http://opendatacommunities.org/id/metropolitan-district-council/wolverhampton","WM MORRISONS STORE",72.68,"Ernest Bold Court","5411","Provisions (Not for resale)","12/05/2020"
"Wolverhampton City Council","http://opendatacommunities.org/id/metropolitan-district-council/wolverhampton","AMZNMKTPLACE AMAZON.CO",9.86,"City Direct","5999","Computing - Purchase of Hardware","12/05/2020"
"Wolverhampton City Council","http://opendatacommunities.org/id/metropolitan-district-council/wolverhampton","AMZNMktplace",30.99,"Emergency Duty Team","5999","-","12/05/2020"
"Wolverhampton City Council","http://opendatacommunities.org/id/metropolitan-district-council/wolverhampton","CUSTOMGIFTS.CO.UK",203.42,"Business Support Services","5399","Equipment - Health and Safety","12/05/2020"
"Wolverhampton City Council","http://opendatacommunities.org/id/metropolitan-district-council/wolverhampton","WIX.COM",93.13,"Technical Support","5968","Computing - Purchase of Software","12/05/2020"
"Wolverhampton City Council","http://opendatacommunities.org/id/metropolitan-district-council/wolverhampton","MBL SEMINARS",135,"Workforce Development","8299","Training Expenses","12/05/2020"
"Wolverhampton City Council","http://opendatacommunities.org/id/metropolitan-district-council/wolverhampton","BRASSINGTON & CO",88,"Northicote Farm","7299","Refuse Collection","12/05/2020"
"Wolverhampton City Council","http://opendatacommunities.org/id/metropolitan-district-council/wolverhampton","FACEBK 39EZMUAAR2",500,"Communications & Marketing - General","7311","R4317","11/05/2020"
"Wolverhampton City Council","http://opendatacommunities.org/id/metropolitan-district-council/wolverhampton","Just Eat",25.6,"Key to Inspiration","5814","Educ Trips, Holidays, Outings, Activity","11/05/2020"
"Wolverhampton City Council","http://opendatacommunities.org/id/metropolitan-district-council/wolverhampton","AMZNMktplace",24.47,"ALV - Darts & Comedy","5999","-","11/05/2020"
"Wolverhampton City Council","http://opendatacommunities.org/id/metropolitan-district-council/wolverhampton","BOOKER LIMITED WOLVERH",76.72,"ALV - Darts & Comedy","5811","-","11/05/2020"
"Wolverhampton City Council","http://opendatacommunities.org/id/metropolitan-district-council/wolverhampton","BOOKER LIMITED WOLVERH",130.23,"ALV - Darts & Comedy","5811","-","11/05/2020"
"Wolverhampton City Council","http://opendatacommunities.org/id/metropolitan-district-council/wolverhampton","SAINSBURYS SACAT (2340",10.5,"ALV - Darts & Comedy","5411","-","11/05/2020"
"Wolverhampton City Council","http://opendatacommunities.org/id/metropolitan-district-council/wolverhampton","DIXONS FAMILY BUTCHERS",100,"Bradley Resource Centre","5499","Provisions (Not for resale)","11/05/2020"
"Wolverhampton City Council","http://opendatacommunities.org/id/metropolitan-district-council/wolverhampton","WWW.TOOLSTATION.COM",31.6,"Bradley Resource Centre","5251","Services - Supplies & Services to users","11/05/2020"
"Wolverhampton City Council","http://opendatacommunities.org/id/metropolitan-district-council/wolverhampton","RESPONSTER PLUS PLAN",15.85,"City Direct","5734","Computing - Purchase of Hardware","11/05/2020"
"Wolverhampton City Council","http://opendatacommunities.org/id/metropolitan-district-council/wolverhampton","ASDA SUPERSTORE",31.02,"Youth Offending Team","5411","Provisions (Not for resale)","11/05/2020"
"Wolverhampton City Council","http://opendatacommunities.org/id/metropolitan-district-council/wolverhampton","APPLE.COM/BILL",0.79,"Managing Director","5735","Computing - Purchase of Software","11/05/2020"
"Wolverhampton City Council","http://opendatacommunities.org/id/metropolitan-district-council/wolverhampton","AMZNMktplace",14.98,"Emergency Duty Team","5999","-","11/05/2020"
"Wolverhampton City Council","http://opendatacommunities.org/id/metropolitan-district-council/wolverhampton","Amazon.co.uk K04Y19M55",119.99,"COVID 19 - Personal Protective equipment","5969","Equipment - Health and Safety","11/05/2020"
"Wolverhampton City Council","http://opendatacommunities.org/id/metropolitan-district-council/wolverhampton","Creative Cloud Indiv",496.94,"Landscape","5734","Computing - Purchase of Software","11/05/2020"
"Wolverhampton City Council","http://opendatacommunities.org/id/metropolitan-district-council/wolverhampton","TFM FARM   COUNTRY",10.32,"Northicote Farm","0763","Equipment - Purchase","11/05/2020"
"Wolverhampton City Council","http://opendatacommunities.org/id/metropolitan-district-council/wolverhampton","Amazon.co.uk DC5OY77C5",1293.9,"Strategic ICTS (ICT Serv Budget)","5969","Computing - Consumables","11/05/2020"
"Wolverhampton City Council","http://opendatacommunities.org/id/metropolitan-district-council/wolverhampton","EBUYER (UK) LTD",60.75,"Strategic ICTS (ICT Serv Budget)","5722","-","11/05/2020"
"Wolverhampton City Council","http://opendatacommunities.org/id/metropolitan-district-council/wolverhampton","EBUYER (UK) LTD",243.93,"Macmillan Welfare Rights","5722","Stationery","11/05/2020"
"Wolverhampton City Council","http://opendatacommunities.org/id/metropolitan-district-council/wolverhampton","PO LANESFIELD 0869",60,"LAC Transitions Team","6011","Independant Living Allowance","08/05/2020"
"Wolverhampton City Council","http://opendatacommunities.org/id/metropolitan-district-council/wolverhampton","Amazon.co.uk DA2V20DG5",68.1,"Strategic ICTS (ICT Serv Budget)","5969","Computing - Consumables","08/05/2020"
"Wolverhampton City Council","http://opendatacommunities.org/id/metropolitan-district-council/wolverhampton","FARMFOODS 603",19.98,"Bradley Resource Centre","5411","Cleaning Supplies and Materials","08/05/2020"
"Wolverhampton City Council","http://opendatacommunities.org/id/metropolitan-district-council/wolverhampton","MOONPIG",3.37,"Corporate Parenting","5399","Stationery","08/05/2020"
"Wolverhampton City Council","http://opendatacommunities.org/id/metropolitan-district-council/wolverhampton","ARGOS LTD",72.93,"LAC Transitions Team","5310","Client Allowances","08/05/2020"
"Wolverhampton City Council","http://opendatacommunities.org/id/metropolitan-district-council/wolverhampton","CITY OF WOLVERHAMPTON",11,"Court of Protection, Funerals Prot Prop","9399","Services - Supplies & Services to users","08/05/2020"
"Wolverhampton City Council","http://opendatacommunities.org/id/metropolitan-district-council/wolverhampton","PAYPAL  DE MORGAN F",60,"Research & Development","8398","Services - Fees and Charges","08/05/2020"
"Wolverhampton City Council","http://opendatacommunities.org/id/metropolitan-district-council/wolverhampton","WM MORRISONS STORE",199.6,"COVID 19 - Food Distribution Hub","5411","Provisions (Not for resale)","08/05/2020"
"Wolverhampton City Council","http://opendatacommunities.org/id/metropolitan-district-council/wolverhampton","THE BAG BROKER",2521.92,"ALV - Darts & Comedy","5499","-","08/05/2020"
"Wolverhampton City Council","http://opendatacommunities.org/id/metropolitan-district-council/wolverhampton","HAMPSHIREFL",357.01,"COVID 19 - Food Distribution Hub","5949","Materials","08/05/2020"
"Wolverhampton City Council","http://opendatacommunities.org/id/metropolitan-district-council/wolverhampton","FARMFOODS 603",141.36,"Bradley Resource Centre","5411","Provisions (Not for resale)","08/05/2020"
"Wolverhampton City Council","http://opendatacommunities.org/id/metropolitan-district-council/wolverhampton","iStock.com",130,"Document Centre - General","7333","Subscriptions","08/05/2020"
"Wolverhampton City Council","http://opendatacommunities.org/id/metropolitan-district-council/wolverhampton","CURRYS ONLINE",170,"LAC Transitions Team","5732","Client Allowances","08/05/2020"
"Wolverhampton City Council","http://opendatacommunities.org/id/metropolitan-district-council/wolverhampton","WWW.BRISTOWSUTOR.C",0,"Revenues","9399","VAT","08/05/2020"
"Wolverhampton City Council","http://opendatacommunities.org/id/metropolitan-district-council/wolverhampton","ICELAND",77.73,"Key to Inspiration","5411","Provisions (Not for resale)","08/05/2020"
"Wolverhampton City Council","http://opendatacommunities.org/id/metropolitan-district-council/wolverhampton","ICELAND",125.48,"Key to Inspiration","5411","Provisions (Not for resale)","08/05/2020"
"Wolverhampton City Council","http://opendatacommunities.org/id/metropolitan-district-council/wolverhampton","ASDA SUPERSTORE",185,"Key to Inspiration","5411","Provisions (Not for resale)","08/05/2020"
"Wolverhampton City Council","http://opendatacommunities.org/id/metropolitan-district-council/wolverhampton","WWW.PRESTIGEFLOWERS.CO",29.29,"Upper Pendeford Farm Childrens Home","5193","-","08/05/2020"
"Wolverhampton City Council","http://opendatacommunities.org/id/metropolitan-district-council/wolverhampton","AMZNMktplace",8.99,"Upper Pendeford Farm Childrens Home","5999","-","08/05/2020"
"Wolverhampton City Council","http://opendatacommunities.org/id/metropolitan-district-council/wolverhampton","AMZNMktplace",6.83,"Looked After Team 2","5999","-","08/05/2020"
"Wolverhampton City Council","http://opendatacommunities.org/id/metropolitan-district-council/wolverhampton","Amazon.co.uk B212Z6G45",40.33,"Looked After Team 2","5969","-","08/05/2020"
"Wolverhampton City Council","http://opendatacommunities.org/id/metropolitan-district-council/wolverhampton","CMT EQUIPMENT LIMITED",9997.5,"COVID 19 - Personal Protective equipment","5072","Equipment - Health and Safety","08/05/2020"
"Wolverhampton City Council","http://opendatacommunities.org/id/metropolitan-district-council/wolverhampton","WWW.WOLVERHAMPTON.GOV.",83.94,"LAC Transitions Accommodation","9399","Accommodation Costs","08/05/2020"
"Wolverhampton City Council","http://opendatacommunities.org/id/metropolitan-district-council/wolverhampton","FASTSPRING",1369.9,"Technical Support","5734","Computing - Purchase of Software","08/05/2020"
"Wolverhampton City Council","http://opendatacommunities.org/id/metropolitan-district-council/wolverhampton","TFM FARM   COUNTRY",38.45,"Northicote Farm","0763","Materials","08/05/2020"
"Wolverhampton City Council","http://opendatacommunities.org/id/metropolitan-district-council/wolverhampton","Amazon.co.uk HL78G9GT5",19.88,"Bradley Resource Centre","5969","Cleaning Supplies and Materials","07/05/2020"
"Wolverhampton City Council","http://opendatacommunities.org/id/metropolitan-district-council/wolverhampton","ARGOS LTD",68.95,"Ernest Bold Court","5310","Equipment - Purchase","07/05/2020"
"Wolverhampton City Council","http://opendatacommunities.org/id/metropolitan-district-council/wolverhampton","SHELL WILLENHALL R",35.67,"Patching","5541","Petrol","07/05/2020"
"Wolverhampton City Council","http://opendatacommunities.org/id/metropolitan-district-council/wolverhampton","TIPPERS WOLVERHAMPTON",208.87,"Transportation General","5072","-","07/05/2020"
"Wolverhampton City Council","http://opendatacommunities.org/id/metropolitan-district-council/wolverhampton","POST OFFICE COUNTER",7.6,"Patching","9402","Comms - Postage","07/05/2020"
"Wolverhampton City Council","http://opendatacommunities.org/id/metropolitan-district-council/wolverhampton","ALDI STORES LTD",6.58,"Fleet Management","5411","Materials","07/05/2020"
"Wolverhampton City Council","http://opendatacommunities.org/id/metropolitan-district-council/wolverhampton","APPLE.COM/UK",166.66,"Music Support Team","5732","Computing - Purchase of Software","07/05/2020"
"Wolverhampton City Council","http://opendatacommunities.org/id/metropolitan-district-council/wolverhampton","Amazon.co.uk P15651VF5",150.5,"Strategic ICTS (ICT Serv Budget)","5969","Computing - Consumables","07/05/2020"
"Wolverhampton City Council","http://opendatacommunities.org/id/metropolitan-district-council/wolverhampton","AMZNMKTPLACE AMAZON.CO",15.39,"Power2 Team","5999","Direct Work With Children","07/05/2020"
"Wolverhampton City Council","http://opendatacommunities.org/id/metropolitan-district-council/wolverhampton","NAMESCO",34.99,"Communications & Marketing - General","4816","Subscriptions","07/05/2020"
"Wolverhampton City Council","http://opendatacommunities.org/id/metropolitan-district-council/wolverhampton","WWW.JOHNLEWIS.COM",36.95,"ALV - Darts & Comedy","5311","-","07/05/2020"
"Wolverhampton City Council","http://opendatacommunities.org/id/metropolitan-district-council/wolverhampton","CARRIER BAG SHOP",362.22,"ALV - Darts & Comedy","7399","-","07/05/2020"
"Wolverhampton City Council","http://opendatacommunities.org/id/metropolitan-district-council/wolverhampton","Amazon.co.uk KW46N1ZM5",121.64,"ALV - Darts & Comedy","5969","-","07/05/2020"
"Wolverhampton City Council","http://opendatacommunities.org/id/metropolitan-district-council/wolverhampton","LOYD 37 CHURCH STREET",80,"LAC Transitions Team","6011","Client Allowances","07/05/2020"
"Wolverhampton City Council","http://opendatacommunities.org/id/metropolitan-district-council/wolverhampton","Etsy.com - EverythingF",49.99,"Citizenship, Language & Learning","5699","Books","07/05/2020"
"Wolverhampton City Council","http://opendatacommunities.org/id/metropolitan-district-council/wolverhampton","WWW.BRISTOWSUTOR.C",30,"Parking Enforcement","9399","VAT","07/05/2020"
"Wolverhampton City Council","http://opendatacommunities.org/id/metropolitan-district-council/wolverhampton","AMZNMktplace",43.12,"Bradley Resource Centre","5999","Catering","07/05/2020"
"Wolverhampton City Council","http://opendatacommunities.org/id/metropolitan-district-council/wolverhampton","Amazon.co.uk E66TW9385",62.46,"Strategic ICTS (ICT Serv Budget)","5969","Computing - Purchase of Hardware","06/05/2020"
"Wolverhampton City Council","http://opendatacommunities.org/id/metropolitan-district-council/wolverhampton","Amazon.co.uk 195PG3865",32.56,"Power2 Team","5969","Direct Work With Children","06/05/2020"
"Wolverhampton City Council","http://opendatacommunities.org/id/metropolitan-district-council/wolverhampton","CURRYS ONLINE",41.66,"Power2 Team","5732","Financial Assistance In Exceptional Circ","06/05/2020"
"Wolverhampton City Council","http://opendatacommunities.org/id/metropolitan-district-council/wolverhampton","SPECSAVERS 00192000WOL",69,"Key to Inspiration","8043","-","06/05/2020"
"Wolverhampton City Council","http://opendatacommunities.org/id/metropolitan-district-council/wolverhampton","WM MORRISONS STORE",85.31,"COVID 19 - Food Distribution Hub","5411","Provisions (Not for resale)","06/05/2020"
"Wolverhampton City Council","http://opendatacommunities.org/id/metropolitan-district-council/wolverhampton","AMZNMktplace",254.44,"ALV - Darts & Comedy","5999","-","06/05/2020"
"Wolverhampton City Council","http://opendatacommunities.org/id/metropolitan-district-council/wolverhampton","WHOLESALE SERVICES",26.99,"ALV - Darts & Comedy","7399","-","06/05/2020"
"Wolverhampton City Council","http://opendatacommunities.org/id/metropolitan-district-council/wolverhampton","SP   BROOKLYN TRADING",97.77,"ALV - Darts & Comedy","5734","-","06/05/2020"
"Wolverhampton City Council","http://opendatacommunities.org/id/metropolitan-district-council/wolverhampton","WM MORRISONS STORE",124.35,"Bradley Resource Centre","5411","Provisions (Not for resale)","06/05/2020"
"Wolverhampton City Council","http://opendatacommunities.org/id/metropolitan-district-council/wolverhampton","HYPERAMA CASH & CARRY",252.37,"Bradley Resource Centre","5310","Provisions (Not for resale)","06/05/2020"
"Wolverhampton City Council","http://opendatacommunities.org/id/metropolitan-district-council/wolverhampton","Amazon.co.uk 1P7I05AA5",26.71,"Citizenship, Language & Learning","5969","Books","06/05/2020"
"Wolverhampton City Council","http://opendatacommunities.org/id/metropolitan-district-council/wolverhampton","CURRYS ONLINE",191.66,"Key to Inspiration","5732","Equipment - Purchase","06/05/2020"
"Wolverhampton City Council","http://opendatacommunities.org/id/metropolitan-district-council/wolverhampton","AMZ Amazon Business UK",-4.65,"Independant Living Services","5969","Equipment - Health and Safety","06/05/2020"
"Wolverhampton City Council","http://opendatacommunities.org/id/metropolitan-district-council/wolverhampton","Amazon.co.uk 9O58Q1UH5",69.73,"Music Support Team","5969","Books","06/05/2020"
"Wolverhampton City Council","http://opendatacommunities.org/id/metropolitan-district-council/wolverhampton","Amazon.co.uk O94KT6FW5",69.73,"Music Support Team","5969","Books","06/05/2020"
"Wolverhampton City Council","http://opendatacommunities.org/id/metropolitan-district-council/wolverhampton","Amazon.co.uk DA0M36HI5",69.73,"Music Support Team","5969","Books","06/05/2020"
"Wolverhampton City Council","http://opendatacommunities.org/id/metropolitan-district-council/wolverhampton","TFM FARM   COUNTRY",150.68,"Northicote Farm","0763","Provisions (Not for resale)","06/05/2020"
"Wolverhampton City Council","http://opendatacommunities.org/id/metropolitan-district-council/wolverhampton","WILKO.COM",400.83,"COVID 19 - Homeless Accommodation","5399","Equipment - Health and Safety","05/05/2020"
"Wolverhampton City Council","http://opendatacommunities.org/id/metropolitan-district-council/wolverhampton","CardtronicsUK",200,"Power2 Team","6011","Direct Work With Children","05/05/2020"
"Wolverhampton City Council","http://opendatacommunities.org/id/metropolitan-district-council/wolverhampton","POST OFFICE COUNTER",65,"Macmillan Welfare Rights","9402","Stationery","05/05/2020"
"Wolverhampton City Council","http://opendatacommunities.org/id/metropolitan-district-council/wolverhampton","NAMESCO",46.97,"Mayoral Expenses","4816","R4317","05/05/2020"
"Wolverhampton City Council","http://opendatacommunities.org/id/metropolitan-district-council/wolverhampton","NAMESCO",93.93,"Communications & Marketing - General","4816","R4317","05/05/2020"
"Wolverhampton City Council","http://opendatacommunities.org/id/metropolitan-district-council/wolverhampton","HAMPSHIREFL",506.39,"COVID 19 - Food Distribution Hub","5949","Materials","05/05/2020"
"Wolverhampton City Council","http://opendatacommunities.org/id/metropolitan-district-council/wolverhampton","ASDA STORE 4753",5.4,"Bradley Resource Centre","5411","Provisions (Not for resale)","05/05/2020"
"Wolverhampton City Council","http://opendatacommunities.org/id/metropolitan-district-council/wolverhampton","WM MORRISONS STORE",37.42,"Ernest Bold Court","5411","Provisions (Not for resale)","05/05/2020"
"Wolverhampton City Council","http://opendatacommunities.org/id/metropolitan-district-council/wolverhampton","Amazon.co.uk PZ2Z85L25",116.25,"Independant Living Services","5969","Equipment - Health and Safety","05/05/2020"
"Wolverhampton City Council","http://opendatacommunities.org/id/metropolitan-district-council/wolverhampton","Amazon.co.uk M86472Q85",74.4,"Independant Living Services","5969","Equipment - Health and Safety","05/05/2020"
"Wolverhampton City Council","http://opendatacommunities.org/id/metropolitan-district-council/wolverhampton","123 REG LTD",9.99,"Technical Support","5968","Computing - Purchase of Software","05/05/2020"
"Wolverhampton City Council","http://opendatacommunities.org/id/metropolitan-district-council/wolverhampton","GEN REGISTER OFFICE",11,"COVID 19 - Children�s Social Care","9399","Section 17","05/05/2020"
"Wolverhampton City Council","http://opendatacommunities.org/id/metropolitan-district-council/wolverhampton","NATIONWIDE",200,"NRPF","6011","No Recourse to Public Funds","05/05/2020"
"Wolverhampton City Council","http://opendatacommunities.org/id/metropolitan-district-council/wolverhampton","LOYD 28A HIGH STREET",500,"NRPF","6011","No Recourse to Public Funds","05/05/2020"
"Wolverhampton City Council","http://opendatacommunities.org/id/metropolitan-district-council/wolverhampton","WWW.NOBISCO.CO.UK",69.44,"COVID 19 - Homeless Accommodation","5085","Equipment - Health and Safety","04/05/2020"
"Wolverhampton City Council","http://opendatacommunities.org/id/metropolitan-district-council/wolverhampton","AMZNMktplace",21.28,"Power2 Team","5999","Direct Work With Children","04/05/2020"
"Wolverhampton City Council","http://opendatacommunities.org/id/metropolitan-district-council/wolverhampton","AMZNMktplace",10.82,"Power2 Team","5999","Direct Work With Children","04/05/2020"
"Wolverhampton City Council","http://opendatacommunities.org/id/metropolitan-district-council/wolverhampton","Amazon.co.uk JH09K9DV5",32.56,"Power2 Team","5969","Direct Work With Children","04/05/2020"
"Wolverhampton City Council","http://opendatacommunities.org/id/metropolitan-district-council/wolverhampton","NAMESCO",23.97,"Economic Development","4816","R4317","04/05/2020"
"Wolverhampton City Council","http://opendatacommunities.org/id/metropolitan-district-council/wolverhampton","DELIVEROO.CO.UK",43.82,"Key to Inspiration","5812","-","04/05/2020"
"Wolverhampton City Council","http://opendatacommunities.org/id/metropolitan-district-council/wolverhampton","SHEIN.COM",142.82,"Key to Inspiration","5651","-","04/05/2020"
"Wolverhampton City Council","http://opendatacommunities.org/id/metropolitan-district-council/wolverhampton","AMZNMktplace",13.31,"ALV - Darts & Comedy","5999","Equipment - Purchase","04/05/2020"
"Wolverhampton City Council","http://opendatacommunities.org/id/metropolitan-district-council/wolverhampton","WM MORRISONS STORE",127.54,"Bradley Resource Centre","5411","Provisions (Not for resale)","04/05/2020"
"Wolverhampton City Council","http://opendatacommunities.org/id/metropolitan-district-council/wolverhampton","Amazon.co.uk DQ2919QY5",23.21,"Citizenship, Language & Learning","5969","Books","04/05/2020"
"Wolverhampton City Council","http://opendatacommunities.org/id/metropolitan-district-council/wolverhampton","AMZNMktplace",22.49,"Bradley Resource Centre","5999","Cleaning Supplies and Materials","04/05/2020"
"Wolverhampton City Council","http://opendatacommunities.org/id/metropolitan-district-council/wolverhampton","BARCLAYS",20,"LAC Transitions Team","6011","Provisions (Not for resale)","04/05/2020"
"Wolverhampton City Council","http://opendatacommunities.org/id/metropolitan-district-council/wolverhampton","RONTEC BILSTON",4.6,"Ernest Bold Court","5541","Provisions (Not for resale)","04/05/2020"
"Wolverhampton City Council","http://opendatacommunities.org/id/metropolitan-district-council/wolverhampton","AMZNMktplace",27.98,"Vulnerable Young Persons Team","5999","Equipment - Health and Safety","04/05/2020"
"Wolverhampton City Council","http://opendatacommunities.org/id/metropolitan-district-council/wolverhampton","123 REG LTD",9.99,"Technical Support","5968","Computing - Purchase of Software","04/05/2020"
"Wolverhampton City Council","http://opendatacommunities.org/id/metropolitan-district-council/wolverhampton","123 REG LTD",19.98,"Technical Support","5968","Computing - Purchase of Software","04/05/2020"
"Wolverhampton City Council","http://opendatacommunities.org/id/metropolitan-district-council/wolverhampton","FACEBK  7UU7UTSWP2",17,"Technical Support","7311","Computing - Purchase of Software","04/05/2020"
"Wolverhampton City Council","http://opendatacommunities.org/id/metropolitan-district-council/wolverhampton","ALDI 73 772",2.97,"Duke Street Bungalows","5411","Provisions (Not for resale)","04/05/2020"
"Wolverhampton City Council","http://opendatacommunities.org/id/metropolitan-district-council/wolverhampton","QUARTER HOUSE 51-53 S",500,"NRPF","6011","No Recourse to Public Funds","04/05/2020"
"Wolverhampton City Council","http://opendatacommunities.org/id/metropolitan-district-council/wolverhampton","ROOKERY Sainsburys Ba",200,"Duke Street Bungalows","6011","Provisions (Not for resale)","04/05/2020"
"Wolverhampton City Council","http://opendatacommunities.org/id/metropolitan-district-council/wolverhampton","SEVERN TRENT WATER",17.61,"LAC Transitions Team","4900","Client Allowances","01/05/2020"
"Wolverhampton City Council","http://opendatacommunities.org/id/metropolitan-district-council/wolverhampton","SSE",17.01,"LAC Transitions Accommodation","4900","Accommodation Costs","01/05/2020"
"Wolverhampton City Council","http://opendatacommunities.org/id/metropolitan-district-council/wolverhampton","UKN01408",40,"LAC Transitions Team","6011","Independant Living Allowance","01/05/2020"
"Wolverhampton City Council","http://opendatacommunities.org/id/metropolitan-district-council/wolverhampton","AMZNMktplace",12.03,"Power2 Team","5999","Direct Work With Children","01/05/2020"
"Wolverhampton City Council","http://opendatacommunities.org/id/metropolitan-district-council/wolverhampton","AMZNMktplace",33.7,"Power2 Team","5999","Direct Work With Children","01/05/2020"
"Wolverhampton City Council","http://opendatacommunities.org/id/metropolitan-district-council/wolverhampton","Amazon.co.uk SM1Y969B5",15.82,"Power2 Team","5969","Direct Work With Children","01/05/2020"
"Wolverhampton City Council","http://opendatacommunities.org/id/metropolitan-district-council/wolverhampton","Amazon.co.uk Q55K40XL5",47.49,"Power2 Team","5969","Direct Work With Children","01/05/2020"
"Wolverhampton City Council","http://opendatacommunities.org/id/metropolitan-district-council/wolverhampton","Amazon.co.uk FJ0XD5E75",8.41,"Power2 Team","5969","Direct Work With Children","01/05/2020"
"Wolverhampton City Council","http://opendatacommunities.org/id/metropolitan-district-council/wolverhampton","AMZNMktplace",4.57,"Power2 Team","5999","Direct Work With Children","01/05/2020"
"Wolverhampton City Council","http://opendatacommunities.org/id/metropolitan-district-council/wolverhampton","AMZNMktplace",23.26,"Power2 Team","5999","Direct Work With Children","01/05/2020"
"Wolverhampton City Council","http://opendatacommunities.org/id/metropolitan-district-council/wolverhampton","AMZNMktplace",6.18,"Power2 Team","5999","Direct Work With Children","01/05/2020"
"Wolverhampton City Council","http://opendatacommunities.org/id/metropolitan-district-council/wolverhampton","FACEBK XM2N5TSAR2",218.67,"Communications & Marketing - General","7311","R4317","01/05/2020"
"Wolverhampton City Council","http://opendatacommunities.org/id/metropolitan-district-council/wolverhampton","Dunelm",114.5,"LAC Transitions Team","5712","Client Allowances","01/05/2020"
"Wolverhampton City Council","http://opendatacommunities.org/id/metropolitan-district-council/wolverhampton","CITY OF WOLVERHAMPTON",11,"Court of Protection, Funerals Prot Prop","9399","R4408","01/05/2020"
"Wolverhampton City Council","http://opendatacommunities.org/id/metropolitan-district-council/wolverhampton","CO-OPERATIVE FOOD",22.47,"Key to Inspiration","5411","-","01/05/2020"
"Wolverhampton City Council","http://opendatacommunities.org/id/metropolitan-district-council/wolverhampton","AMZNMktplace",36.66,"COVID 19 - Children�s Social Care","5999","Section 17","01/05/2020"
"Wolverhampton City Council","http://opendatacommunities.org/id/metropolitan-district-council/wolverhampton","ICELAND",216.48,"Key to Inspiration","5411","Provisions (Not for resale)","01/05/2020"
"Wolverhampton City Council","http://opendatacommunities.org/id/metropolitan-district-council/wolverhampton","ASDA SUPERSTORE",138.1,"Key to Inspiration","5411","Provisions (Not for resale)","01/05/2020"
"Wolverhampton City Council","http://opendatacommunities.org/id/metropolitan-district-council/wolverhampton","SAINSBURYS (2340)",27.19,"Key to Inspiration","5411","Provisions (Not for resale)","01/05/2020"
"Wolverhampton City Council","http://opendatacommunities.org/id/metropolitan-district-council/wolverhampton","ROYAL BK OF SCOTLAND",20,"LAC Transitions Accommodation","6011","Accommodation Costs","01/05/2020"
"Wolverhampton City Council","http://opendatacommunities.org/id/metropolitan-district-council/wolverhampton","Amazon.co.uk AX6NG7CG5",15.45,"LAC Transitions Team","5969","Financial Assistance In Exceptional Circ","01/05/2020"
"Wolverhampton City Council","http://opendatacommunities.org/id/metropolitan-district-council/wolverhampton","HOME BARGAINS",1.99,"Wolverhampton Indoor and Open Market","5251","R4007","01/05/2020"
"Wolverhampton City Council","http://opendatacommunities.org/id/metropolitan-district-council/wolverhampton","B&M 333 - AN BENTLEY B",5.97,"Wolverhampton Indoor and Open Market","5399","R&M - Departmental planned (external)","01/05/2020"
"Wolverhampton City Council","http://opendatacommunities.org/id/metropolitan-district-council/wolverhampton","WORKPLACEST",76.56,"Independant Living Services","1520","-","01/05/2020"
"Wolverhampton City Council","http://opendatacommunities.org/id/metropolitan-district-council/wolverhampton","JAMES LISTER & SONS LT",42.6,"Wholesale Market Facilities Management","5085","Materials","01/05/2020"
"Wolverhampton City Council","http://opendatacommunities.org/id/metropolitan-district-council/wolverhampton","123 REG LTD",9.99,"Technical Support","5968","Computing - Purchase of Software","01/05/2020"
"Wolverhampton City Council","http://opendatacommunities.org/id/metropolitan-district-council/wolverhampton","R H ENVIRONMENTAL LTD",15,"Food and Health & Safety","5734","Training Expenses","01/05/2020"
"Wolverhampton City Council","http://opendatacommunities.org/id/metropolitan-district-council/wolverhampton","CO-OPERATIVE FOOD",13.9,"Ernest Bold Court","5411","Provisions (Not for resale)","01/05/2020"
"Wolverhampton City Council","http://opendatacommunities.org/id/metropolitan-district-council/wolverhampton","TFM FARM   COUNTRY",35.97,"Northicote Farm","0763","Materials","01/05/2020"
"Wolverhampton City Council","http://opendatacommunities.org/id/metropolitan-district-council/wolverhampton","TFM FARM   COUNTRY",18.82,"Northicote Farm","0763","Equipment - Purchase","01/05/2020"
